bitfinex-derivatives/quotes_ETHF0:USTF0_20250110
["timestamp","ask_amount","ask_price","bid_price","bid_amount"]
[1736508169217,4.7474126,3310.7,3310.6,0.30207]
[1736508170416,4.7474126,3310.7,3310.6,41.10207]
[1736508170617,4.7474126,3311.1,3311.0,0.30203]
[1736508172110,0.73532,3311.2,3311.1,0.30202]
[1736508172111,5.1807126,3311.2,3311.1,0.30202]
[1736508172812,0.4333,3311.2,3311.1,0.30202]
[1736508174213,5.2136126,3311.4,3311.1,0.30202]
[1736508174515,5.2136126,3311.4,3311.3,0.30201]
[1736508175112,5.2136126,3311.4,3311.3,3.50981]
[1736508175514,7.59149292,3311.4,3311.3,3.50981]
[1736508176414,0.4662,3311.4,3311.3,3.50981]
[1736508176915,7.57439292,3311.5,3311.4,0.302]
[1736508177517,0.4491,3311.5,3311.4,0.302]
[1736508178819,0.4491,3311.5,3311.4,2.61303827]
[1736508179027,7.12529292,3311.6,3311.5,0.30199]
[1736508180321,6.39065881,3311.7,3311.6,0.30198]
[1736508181412,0.474,3311.7,3311.6,0.30198]
[1736508181622,0.30198,3311.6,3311.3,3.2078]
[1736508181825,0.474,3311.7,3311.3,3.2078]
[1736508182117,0.302,3311.4,3311.3,3.2078]
[1736508183120,4.73297441,3311.7,3311.3,3.2078]
[1736508183315,5.03494441,3311.7,3311.6,0.30198]
[1736508183922,0.30197,3311.7,3311.6,0.30198]
[1736508185121,0.939,3311.8,3311.6,0.30198]
[1736508185413,0.30197,3311.7,3311.5,0.30198]
[1736508185621,0.302,3311.4,3311.3,3.2078]
[1736508185817,2.61303827,3311.4,3311.3,3.2078]
[1736508186022,0.302,3311.4,3311.3,3.2078]
[1736508187127,0.30202,3311.2,3311.0,0.30203]
[1736508187321,0.76082,3311.1,3311.0,0.30203]
[1736508188119,0.4588,3311.1,3311.0,0.30203]
[1736508188823,0.4588,3311.1,3310.9,3.2078]
[1736508189325,0.4588,3311.1,3311.0,0.30203]
[1736508191922,5.91665881,3311.2,3311.1,0.30202]
[1736508196435,0.76641,3311.3,3311.1,0.30202]
[1736508196829,0.4644,3311.3,3311.2,0.30202]
[1736508198936,4.73153491,3311.6,3311.5,0.30199]
[1736508199135,5.17553491,3311.6,3311.5,0.30199]
[1736508199337,0.444,3311.6,3311.5,0.30199]
[1736508199729,5.19633491,3311.7,3311.4,3.2078]
[1736508199730,4.73153491,3311.7,3311.4,3.2078]
[1736508199934,4.73153491,3311.7,3311.6,0.30198]
[1736508200633,7.42722292,3312.2,3311.4,5.51883827]
[1736508200634,5.03346491,3312.2,3312.0,0.30194]
[1736508200948,0.30193,3312.1,3312.0,0.30194]
[1736508201631,0.30194,3312.0,3311.9,0.30195]
[1736508201832,0.30194,3312.0,3311.8,3.50976]
[1736508202228,0.30192,3312.2,3311.8,3.50976]
[1736508202432,7.93847318,3312.3,3311.8,3.2078]
[1736508202633,0.30195,3311.9,3311.8,3.2078]
[1736508203238,0.30198,3311.6,3311.5,2.918]
[1736508203635,0.4595,3311.8,3311.3,0.302]
[1736508203838,1.21019,3311.5,3311.3,0.302]
[1736508204440,0.9082,3311.5,3311.3,0.30201]
[1736508204743,5.63973491,3311.5,3311.3,0.30201]
[1736508204945,5.63973491,3311.5,3311.2,3.2078]
[1736508205238,5.63973491,3311.5,3311.4,0.302]
[1736508205745,0.9082,3311.5,3311.4,0.302]
[1736508205944,0.9082,3311.5,3311.3,0.302]
[1736508206143,1.21019,3311.5,3311.3,0.302]
[1736508206748,1.21019,3311.5,3311.2,3.50981]
[1736508206939,1.21019,3311.5,3311.2,3.2078]
[1736508207243,1.21019,3311.5,3311.3,0.302]
[1736508207633,4.73729946,3311.4,3311.3,0.302]
[1736508208040,4.73729946,3311.4,3311.2,3.2078]
[1736508208240,5.03929946,3311.4,3311.2,3.50981]
[1736508208944,0.30201,3311.3,3311.2,3.50981]
[1736508209139,0.30201,3311.3,3311.2,3.2078]
[1736508209345,5.03930946,3311.3,3311.2,3.2078]
[1736508210647,6.21866881,3311.3,3311.2,3.2078]
[1736508211843,0.30201,3311.3,3311.2,3.2078]
[1736508216260,8.60032754,3311.4,3311.2,3.50981]
[1736508216765,8.60032754,3311.4,3311.3,0.30201]
[1736508217054,8.60032754,3311.4,3311.3,40.8]
[1736508217655,0.302,3311.4,3311.3,40.8]
[1736508217859,9.20652754,3311.5,3311.4,0.302]
[1736508218048,8.29832754,3311.5,3311.4,0.302]
[1736508218254,8.29832754,3311.5,3311.4,1.6782]
[1736508218649,9.76672172,3311.7,3311.4,1.3762]
[1736508218650,4.74837966,3311.6,3311.4,1.3762]
[1736508218852,4.74837966,3311.6,3311.5,0.30199]
[1736508219658,4.74837966,3311.7,3311.6,0.30198]
[1736508220357,4.74837966,3311.7,3311.6,3.50978]
[1736508220753,4.74837966,3311.8,3311.6,3.2078]
[1736508220960,5.05033966,3311.8,3311.7,0.30197]
[1736508222254,0.30196,3311.8,3311.7,0.30197]
[1736508224256,5.05033966,3311.8,3311.7,0.30197]
[1736508225162,4.74837966,3311.8,3311.7,0.30197]
[1736508225362,5.05033966,3311.8,3311.7,0.30197]
[1736508225663,5.05034966,3311.8,3311.7,0.30197]
[1736508227061,4.74837966,3311.8,3311.6,3.2078]
[1736508227262,0.30197,3311.7,3311.6,3.50977]
[1736508228458,5.05033966,3311.8,3311.7,0.30197]
[1736508229757,4.74837966,3311.8,3311.7,0.30197]
[1736508230761,5.49433966,3311.9,3311.8,0.30196]
[1736508231761,5.19237966,3311.9,3311.6,3.2078]
[1736508232064,0.30197,3311.7,3311.6,3.50977]
[1736508232462,0.30197,3311.8,3311.7,0.30196]
[1736508232863,5.05034966,3311.8,3311.7,0.30196]
[1736508233062,4.74837966,3311.8,3311.6,3.2078]
[1736508233263,0.30197,3311.7,3311.6,3.50978]
[1736508233455,0.30197,3311.7,3311.2,0.4389]
[1736508233456,4.74837966,3311.8,3311.2,0.4389]
[1736508233662,0.30199,3311.5,3311.4,0.30199]
[1736508234265,0.444,3311.9,3311.2,0.8779]
[1736508234565,0.30199,3311.6,3311.5,0.30198]
[1736508235061,0.30197,3311.7,3311.6,0.30197]
[1736508235464,0.30197,3311.8,3311.2,0.8779]
[1736508235658,0.30197,3311.8,3311.7,0.30197]
[1736508235860,0.444,3311.9,3311.7,0.30197]
[1736508236059,0.74596,3311.9,3311.7,0.30197]
[1736508236764,0.444,3311.9,3311.8,0.30196]
[1736508241262,5.19045066,3311.9,3311.8,0.30196]
[1736508242462,0.444,3311.9,3311.8,0.30196]
[1736508244874,5.1908525,3311.9,3311.8,0.30196]
[1736508246671,4.7468525,3311.9,3311.8,0.30196]
[1736508247468,4.7468525,3311.9,3311.8,41.10196]
[1736508248776,5.1797525,3312.3,3312.2,0.30192]
[1736508249772,5.1797525,3312.3,3312.2,0.77412]
[1736508250173,5.93306333,3312.3,3312.2,3.08515827]
[1736508251374,4.7430679,3312.4,3312.3,0.30192]
[1736508252276,5.93306333,3312.5,3312.3,0.30192]
[1736508252579,0.73771,3312.4,3312.3,0.30192]
[1736508252774,0.30192,3312.2,3312.1,3.50973]
[1736508253172,0.76262,3312.3,3312.2,0.30192]
[1736508254084,0.4607,3312.3,3312.2,0.30192]
[1736508254686,0.46167752,3312.3,3312.2,0.30192]
[1736508254886,0.46167752,3312.3,3311.8,40.8]
[1736508255184,0.30195,3312.0,3311.8,0.30196]
[1736508255790,0.30195,3311.9,3311.5,3.2078]
[1736508255990,0.467,3311.8,3311.5,3.2078]
[1736508256180,0.4344,3311.7,3311.6,0.30198]
[1736508256781,5.17878244,3311.7,3311.6,0.30198]
[1736508259785,5.48075244,3311.7,3311.5,3.2078]
[1736508259985,0.4344,3311.7,3311.6,0.30198]
[1736508260985,6.36487806,3311.7,3311.6,0.30198]
[1736508264990,0.4344,3311.7,3311.6,0.30198]
[1736508266894,1.18798,3311.7,3311.5,3.50979]
[1736508267192,1.18798,3311.7,3311.6,0.30198]
[1736508269789,0.886,3311.7,3311.5,3.50978]
[1736508269995,1.18798,3311.7,3311.6,0.30198]
[1736508271191,6.81977157,3311.7,3311.5,3.50978]
[1736508271699,7.12175157,3311.7,3311.5,3.50978]
[1736508272694,7.12175157,3311.7,3311.5,3.2078]
[1736508272894,7.12175157,3311.7,3311.6,0.30198]
[1736508273295,9.13080984,3311.7,3311.5,3.2078]
[1736508273495,0.30204,3310.9,3310.8,4.72889903]
[1736508273790,7.02787827,3310.9,3310.8,1.60368099]
[1736508273997,0.30205,3310.8,3310.7,7.09184479]
[1736508274699,5.30205,3310.8,3310.7,6.34411669]
[1736508274991,5.0,3310.8,3309.8,0.30214]
[1736508275196,0.30212,3310.1,3309.8,0.30214]
[1736508275996,2.31103827,3310.3,3309.8,0.30214]
[1736508276301,3.55619057,3309.9,3309.7,3.50995]
[1736508276494,3.55619057,3309.9,3309.8,0.30214]
[1736508277400,3.55619057,3310.0,3309.8,0.30214]
[1736508277696,3.55619057,3310.0,3309.7,3.2078]
[1736508277900,3.85832057,3310.0,3309.8,0.30214]
[1736508278096,3.55619057,3310.0,3309.7,3.2078]
[1736508278304,0.30214,3309.8,3309.7,3.2078]
[1736508279803,3.85833057,3309.8,3309.7,3.2078]
[1736508280400,3.55619057,3309.8,3309.1,40.8]
[1736508280700,5.82102827,3309.3,3309.2,0.4473]
[1736508280901,7.02802827,3309.3,3309.2,0.4473]
[1736508287801,4.71799,3309.3,3309.2,0.4473]
[1736508295713,1.51019,3309.3,3309.2,0.4473]
[1736508295916,4.71799,3309.3,3309.2,0.4473]
[1736508297720,1.51019,3309.3,3309.2,0.4473]
[1736508298016,4.71799,3309.3,3309.2,0.4473]
[1736508303427,3.50999,3309.3,3309.2,0.4473]
[1736508316633,4.71799,3309.3,3309.2,0.4473]
[1736508317242,3.50999,3309.3,3309.2,0.4473]
[1736508321442,4.74158743,3309.4,3309.2,0.4473]
[1736508321737,4.02478743,3309.4,3309.3,0.73529]
[1736508322432,4.02478743,3309.4,3309.3,41.53529]
[1736508322943,3.56287436,3309.5,3309.3,41.53529]
[1736508323146,0.30218,3309.4,3309.3,41.53529]
[1736508324145,3.86505436,3309.4,3309.3,41.53529]
[1736508324438,3.86505436,3309.4,3309.3,41.2331]
[1736508324636,3.86505436,3309.4,3309.3,0.4331]
[1736508324941,3.86505436,3309.4,3309.3,0.8978]
[1736508325242,0.30218,3309.4,3309.3,0.8978]
[1736508326540,6.22916429,3309.4,3309.3,0.8978]
[1736508327436,0.30218,3309.4,3309.3,0.8978]
[1736508329143,0.30218,3309.5,3309.3,1.19999]
[1736508329344,7.12256949,3309.6,3309.5,0.30217]
[1736508329842,7.42472949,3309.6,3309.4,0.30217]
[1736508330048,0.30216,3309.6,3309.4,0.30217]
[1736508330342,9.14679286,3309.7,3309.3,0.8978]
[1736508330343,5.93899286,3309.7,3309.3,4.1056]
[1736508330541,5.93899286,3309.7,3309.6,0.30216]
[1736508331148,5.93899286,3309.8,3309.6,0.30216]
[1736508332144,6.24114286,3309.8,3309.6,0.30216]
[1736508332645,5.93899286,3309.9,3309.3,6.41663827]
[1736508332845,0.30216,3309.7,3309.5,0.30216]
[1736508333637,5.93899286,3309.9,3309.3,1.19999]
[1736508333638,0.30218,3309.5,3309.3,1.19999]
[1736508334949,0.30216,3309.6,3309.4,0.30218]
[1736508335246,6.24115286,3309.6,3309.4,0.30218]
[1736508335851,0.30218,3309.5,3309.3,1.19998]
[1736508336241,0.30218,3309.4,3309.3,0.8978]
[1736508336546,0.30218,3309.4,3309.3,1.19999]
[1736508337251,0.30218,3309.4,3309.3,0.8978]
[1736508337446,0.30218,3309.4,3309.3,1.19999]
[1736508338144,5.93899286,3309.6,3309.2,0.4473]
[1736508338652,0.30217,3309.5,3309.3,0.30218]
[1736508338849,0.30217,3309.5,3309.4,0.30218]
[1736508339046,5.93899286,3309.6,3309.4,0.30218]
[1736508339253,6.24116286,3309.6,3309.4,0.30218]
[1736508339647,0.30217,3309.6,3309.4,0.30218]
[1736508340853,0.30217,3309.6,3309.3,0.30218]
[1736508341555,0.30217,3309.6,3309.4,0.30218]
[1736508342848,0.30217,3309.6,3309.2,0.4473]
[1736508342849,3.50996,3309.7,3309.2,0.4473]
[1736508343049,3.2078,3309.7,3309.2,0.4473]
[1736508343245,3.50996,3309.7,3309.5,0.30217]
[1736508344761,5.93655642,3309.6,3309.5,0.30217]
[1736508346158,3.50996,3309.7,3309.5,0.30217]
[1736508349563,0.30216,3309.6,3309.5,0.30217]
[1736508349763,0.30218,3309.4,3309.2,0.4473]
[1736508350061,9.14435642,3309.7,3309.2,0.74949]
[1736508350256,0.30219,3309.3,3309.2,0.74949]
[1736508350762,9.14435642,3309.7,3309.2,0.74949]
[1736508350763,5.93655642,3309.6,3309.2,0.74949]
[1736508350955,5.93655642,3309.6,3309.2,0.4473]
[1736508351263,3.2078,3309.3,3308.6,7.42257763]
[1736508351465,0.30223,3308.8,3308.7,0.4348]
[1736508351658,0.30223,3308.8,3308.7,41.2348]
[1736508352555,0.4641,3309.1,3308.7,41.2348]
[1736508352764,0.30223,3308.9,3308.7,41.53704]
[1736508352957,5.0527735,3308.9,3308.7,41.53704]
[1736508353662,5.0527735,3308.9,3308.7,41.2348]
[1736508353663,4.7505435,3308.9,3308.7,41.2348]
[1736508353857,5.0527735,3308.9,3308.8,0.30223]
[1736508354057,5.0527735,3308.9,3308.7,41.2348]
[1736508354258,4.7505435,3308.9,3308.7,41.53704]
[1736508354460,0.30223,3308.8,3308.7,41.53704]
[1736508354859,5.0527735,3308.9,3308.7,41.53704]
[1736508355559,4.7505435,3308.9,3308.7,41.2348]
[1736508355766,0.30223,3308.8,3308.7,41.2348]
[1736508356765,0.30223,3308.8,3308.7,0.4348]
[1736508357263,6.24040937,3308.8,3308.7,41.2348]
[1736508359263,6.24040937,3308.8,3308.7,40.8]
[1736508359465,0.30227,3308.4,3308.1,1.65999]
[1736508359666,0.30227,3308.4,3308.2,0.30229]
[1736508359866,0.30227,3308.4,3308.1,42.1577]
[1736508360166,0.30227,3308.4,3308.1,42.45999]
[1736508360464,0.30227,3308.5,3308.2,0.30229]
[1736508360769,0.30227,3308.4,3308.1,0.73739]
[1736508360963,0.30229,3308.3,3308.2,40.8]
[1736508361567,5.93397295,3308.3,3308.2,40.8]
[1736508361765,5.93397295,3308.3,3308.2,41.10229]
[1736508361962,5.93397295,3308.3,3308.2,41.14803141]
[1736508362769,3.5593421,3308.3,3308.2,41.14803141]
[1736508362972,7.0694221,3308.3,3308.2,40.84574141]
[1736508363162,7.0694221,3308.3,3308.2,0.04574141]
[1736508364573,3.51008,3308.3,3308.2,0.04574141]
[1736508365864,0.30234,3307.7,3307.6,0.4429]
[1736508366065,0.30237,3307.3,3307.2,4.1229]
[1736508366460,0.30237,3307.3,3307.2,44.9229]
[1736508368865,3.51017,3307.3,3307.2,40.8]
[1736508369268,0.30239,3307.1,3306.7,1.22892]
[1736508369666,3.2078,3307.3,3306.8,40.8]
[1736508370067,0.3024,3307.0,3306.8,40.8]
[1736508370561,0.30239,3307.1,3306.8,41.10241]
[1736508370769,3.2078,3307.3,3306.8,41.10241]
[1736508370969,0.30238,3307.2,3306.8,41.10241]
[1736508371174,3.2078,3307.3,3306.8,41.10241]
[1736508371370,0.3024,3307.0,3306.8,40.8]
[1736508371968,3.2078,3307.3,3306.8,40.8]
[1736508372173,0.30241,3306.9,3306.8,40.8]
[1736508375879,0.3024,3307.0,3306.8,40.8]
[1736508376081,0.30241,3306.9,3306.8,40.8]
[1736508376976,0.3024,3307.0,3306.8,40.8]
[1736508377176,3.2078,3307.3,3306.8,40.8]
[1736508377377,0.30241,3306.9,3306.8,40.8]
[1736508377580,3.2078,3307.3,3306.8,40.8]
[1736508377786,3.2078,3307.3,3306.7,0.9265]
[1736508378081,0.30241,3306.9,3306.6,3.95983]
[1736508378682,0.30241,3306.9,3306.7,0.4363]
[1736508378882,0.30241,3306.9,3306.8,0.4717]
[1736508379481,0.30241,3307.0,3306.8,0.4717]
[1736508379885,2.31103827,3307.1,3306.8,0.4717]
[1736508380081,0.30241,3306.9,3306.8,0.4717]
[1736508380281,2.31103827,3307.1,3306.8,0.4717]
[1736508380585,0.30241,3306.9,3306.8,0.4717]
[1736508380780,3.51903827,3307.1,3306.8,0.4717]
[1736508380990,0.30241,3306.9,3306.8,0.4717]
[1736508382584,0.30241,3307.0,3306.8,0.4717]
[1736508385583,0.3024,3307.0,3306.8,0.4717]
[1736508386085,1.208,3307.1,3306.8,0.4717]
[1736508386391,1.208,3307.1,3307.0,0.3024]
[1736508386781,3.51017,3307.3,3307.1,0.30239]
[1736508386980,3.51017,3307.3,3307.2,0.9379]
[1736508387786,3.2078,3307.3,3306.8,0.4717]
[1736508387980,2.61343827,3307.0,3306.9,0.4759]
[1736508397395,2.31103827,3307.0,3306.3,0.4636]
[1736508397601,0.30245,3306.5,3306.4,0.4652]
[1736508399899,2.61348827,3306.5,3306.4,0.4652]
[1736508401796,0.30248,3306.2,3306.0,40.8]
[1736508401997,3.2078,3306.4,3306.1,1.3503]
[1736508402293,0.30247,3306.2,3306.1,1.3503]
[1736508402898,3.2078,3306.4,3306.1,1.3503]
[1736508403200,0.30247,3306.2,3306.1,1.3503]
[1736508404194,0.30247,3306.2,3306.1,0.4425]
[1736508404397,2.61350827,3306.2,3306.1,0.4425]
[1736508404592,0.30256,3305.3,3304.9,7.42292763]
[1736508404793,0.30256,3305.3,3305.2,0.9391]
[1736508404994,5.82137827,3305.5,3305.2,0.9391]
[1736508405199,5.51883827,3305.5,3305.2,0.9391]
[1736508405398,0.30255,3305.4,3305.2,0.9391]
[1736508405902,5.51883827,3305.5,3305.2,0.9391]
[1736508406102,0.30255,3305.4,3305.2,0.9391]
[1736508406299,5.51883827,3305.5,3305.2,0.9391]
[1736508406500,0.30256,3305.2,3305.1,4.72631094]
[1736508406705,2.61359827,3305.2,3305.1,4.72631094]
[1736508407110,2.61359827,3305.2,3304.7,41.2635]
[1736508407111,2.31103827,3305.2,3304.7,41.2635]
[1736508407304,0.30259,3305.0,3304.7,41.2635]
[1736508407907,0.30259,3305.0,3304.7,0.4635]
[1736508408705,6.75460878,3305.1,3304.7,0.4635]
[1736508408904,0.30259,3304.9,3304.7,0.4635]
[1736508409409,0.3026,3304.8,3304.7,0.4635]
[1736508411406,2.31103827,3304.9,3304.7,0.4635]
[1736508411924,4.71838,3305.1,3304.7,0.4635]
[1736508412211,4.4158,3305.1,3304.7,0.76611]
[1736508413310,4.4158,3305.1,3304.8,0.3026]
[1736508413604,3.54680878,3305.4,3305.3,0.30255]
[1736508413804,2.82950878,3305.4,3305.0,3.2078]
[1736508414007,2.82950878,3305.4,3305.3,40.8]
[1736508414200,4.72907838,3305.6,3305.3,40.8]
[1736508414201,0.30253,3305.6,3305.3,40.8]
[1736508414402,4.4158,3305.9,3305.3,40.8]
[1736508414602,2.61354827,3305.8,3305.3,41.10255]
[1736508414801,2.31103827,3305.8,3305.3,40.8]
[1736508415304,0.30252,3305.7,3305.3,40.8]
[1736508415505,2.61354827,3305.8,3305.3,41.10255]
[1736508415808,0.30253,3305.7,3305.3,40.8]
[1736508416101,2.31103827,3305.8,3305.3,40.8]
[1736508416308,3.2078,3305.4,3305.3,40.8]
[1736508416505,3.2078,3305.4,3305.3,41.10255]
[1736508416709,0.30253,3305.7,3305.3,40.8]
[1736508417712,3.2078,3305.8,3305.3,40.8]
[1736508417903,5.51883827,3305.8,3305.3,40.8]
[1736508418204,3.2078,3305.8,3305.7,0.30252]
[1736508418599,3.2078,3305.8,3305.3,40.8]
[1736508418805,4.72907838,3306.1,3305.9,0.3025]
[1736508419008,4.72907838,3306.1,3306.0,1.3167]
[1736508419208,2.31103827,3306.1,3306.0,1.3167]
[1736508419408,0.30253,3305.6,3305.2,3.2078]
[1736508419609,0.30252,3305.7,3305.4,0.9074]
[1736508419912,0.30254,3305.5,3305.4,0.9074]
[1736508420413,3.2078,3305.8,3305.4,0.9074]
[1736508420606,3.51031,3305.8,3305.4,0.9074]
[1736508420904,3.2078,3305.8,3305.4,0.9074]
[1736508421110,3.2078,3305.8,3305.6,0.30253]
[1736508421307,1.208,3306.1,3305.5,0.30253]
[1736508421510,0.30253,3305.7,3305.4,0.9074]
[1736508421711,3.2078,3305.8,3305.4,0.9074]
[1736508422009,3.51032,3305.8,3305.4,0.9074]
[1736508422209,3.51032,3305.8,3305.4,1.20994]
[1736508422647,3.2078,3305.8,3305.4,1.20994]
[1736508422837,2.61354827,3305.9,3305.4,1.20994]
[1736508423158,0.30254,3305.5,3305.4,0.9074]
[1736508423443,0.30254,3305.5,3305.4,0.4652]
[1736508423621,3.6733,3305.8,3305.4,0.4652]
[1736508423831,0.30252,3305.7,3305.4,0.9408]
[1736508424025,3.2078,3305.8,3305.4,0.9408]
[1736508424235,0.30253,3305.6,3305.4,0.9408]
[1736508424526,3.2078,3305.8,3305.4,0.9408]
[1736508424728,3.2078,3305.8,3305.5,0.30253]
[1736508424922,4.72907838,3305.9,3305.5,0.30254]
[1736508425426,0.30251,3305.9,3305.6,40.8]
[1736508426126,0.3025,3305.9,3305.6,40.8]
[1736508426428,0.30251,3305.8,3305.6,40.8]
[1736508426724,0.30252,3305.7,3305.6,40.8]
[1736508426927,0.30251,3305.8,3305.6,40.8]
[1736508427511,2.61354827,3305.9,3305.6,40.8]
[1736508427812,0.30251,3305.8,3305.6,40.8]
[1736508428406,1.208,3306.1,3305.6,40.8]
[1736508428602,0.3025,3305.9,3305.6,41.10253]
[1736508428812,1.208,3306.1,3305.6,40.8]
[1736508429013,0.30249,3306.0,3305.6,41.10252]
[1736508429416,4.72907838,3305.9,3305.6,41.10252]
[1736508430616,5.93707838,3306.1,3305.6,40.8]
[1736508430817,0.3025,3305.9,3305.6,40.8]
[1736508431017,0.30251,3305.8,3305.6,40.8]
[1736508431417,0.3025,3306.0,3305.6,41.10252]
[1736508431619,5.03157838,3306.0,3305.6,41.10252]
[1736508432111,4.72907838,3306.0,3305.4,0.9408]
[1736508432316,0.30252,3305.8,3305.4,1.24334]
[1736508432918,0.30252,3305.8,3305.4,0.9408]
[1736508433111,0.30252,3305.8,3305.5,0.30254]
[1736508433616,5.17607838,3305.9,3305.4,0.9408]
[1736508433820,4.72907838,3305.8,3305.6,0.30252]
[1736508434009,4.72907838,3305.8,3305.7,0.30252]
[1736508434319,4.72907838,3305.8,3305.4,0.9408]
[1736508434722,4.72907838,3305.8,3305.7,0.30252]
[1736508435216,5.03156838,3306.0,3305.7,0.30252]
[1736508435422,4.72907838,3306.0,3305.4,0.9408]
[1736508435720,4.72907838,3306.0,3305.4,3.25183827]
[1736508435918,4.72907838,3306.0,3305.9,0.3025]
[1736508436822,0.30246,3306.4,3305.6,3.2078]
[1736508436823,0.30246,3306.3,3306.1,0.30248]
[1736508437019,0.30246,3306.3,3306.2,1.4025]
[1736508437320,4.72907838,3306.4,3306.2,1.4025]
[1736508437514,5.03153838,3306.4,3306.2,1.4025]
[1736508437921,0.30246,3306.4,3306.2,1.4025]
[1736508440425,3.51026,3306.3,3306.0,0.30249]
[1736508440616,3.51026,3306.3,3305.9,0.30249]
[1736508441030,3.51026,3306.3,3305.7,1.4051]
[1736508441231,3.2078,3306.3,3305.8,0.3025]
[1736508441537,3.2078,3306.3,3305.7,1.4051]
[1736508441538,0.3025,3305.9,3305.7,1.4051]
[1736508442237,0.30251,3305.8,3305.7,1.4051]
[1736508442427,0.77251,3305.8,3305.7,0.4681]
[1736508442633,0.30253,3305.6,3305.4,0.9367]
[1736508442832,0.30253,3305.6,3305.4,1.3856]
[1736508443135,0.47,3305.8,3305.4,1.3856]
[1736508443335,0.30252,3305.7,3305.4,1.68814]
[1736508443935,0.47,3305.8,3305.4,1.68814]
[1736508444138,0.30253,3305.6,3305.4,1.3856]
[1736508444340,0.30254,3305.5,3305.4,0.9259]
[1736508444543,0.30256,3305.3,3305.1,3.2078]
[1736508444940,0.30256,3305.3,3305.2,40.8]
[1736508445137,5.18167838,3305.5,3305.1,3.2078]
[1736508445334,0.30256,3305.2,3305.1,3.2078]
[1736508447141,3.2078,3305.2,3304.7,0.4597]
[1736508447529,3.2078,3305.2,3304.6,0.9023]
[1736508447530,0.3026,3304.8,3304.5,3.2078]
[1736508447738,0.30264,3304.5,3304.0,0.30267]
[1736508447942,0.30264,3304.4,3304.0,0.4454]
[1736508448538,0.30263,3304.5,3304.0,0.4454]
[1736508448841,0.30265,3304.3,3304.0,0.4454]
[1736508449645,5.03368522,3304.3,3304.0,0.4454]
[1736508451035,4.73103522,3304.3,3304.0,0.4454]
[1736508451242,4.73103522,3304.3,3303.6,0.9274]
[1736508451243,7.04207349,3304.3,3303.6,0.9274]
[1736508451442,0.3027,3303.8,3303.7,0.4776]
[1736508451642,7.04207349,3304.3,3303.7,0.4776]
[1736508451946,0.30269,3303.8,3303.7,0.4776]
[1736508452743,0.30271,3303.7,3303.5,3.2078]
[1736508452950,0.30271,3303.6,3303.5,3.2078]
[1736508453343,2.31103827,3304.0,3303.5,3.2078]
[1736508453643,0.30271,3303.7,3303.5,3.2078]
[1736508453947,2.31103827,3304.0,3303.6,40.8]
[1736508454144,0.3027,3303.7,3303.6,40.8]
[1736508455149,0.4325,3303.9,3303.6,40.8]
[1736508455447,0.3027,3303.8,3303.6,40.8]
[1736508456151,4.73103522,3304.2,3303.6,40.8]
[1736508456452,0.30266,3304.1,3303.7,0.77519]
[1736508456645,8.25007349,3304.3,3303.8,0.892]
[1736508456844,0.30267,3304.1,3303.8,0.892]
[1736508457352,0.30268,3304.0,3303.8,0.892]
[1736508457850,0.30268,3303.9,3303.8,0.892]
[1736508458051,0.30268,3304.0,3303.8,0.892]
[1736508459147,0.30268,3303.9,3303.8,0.4587]
[1736508460244,0.30268,3303.9,3302.6,3.2078]
[1736508460245,9.62207654,3303.9,3302.6,3.2078]
[1736508460449,2.61383827,3302.7,3302.2,0.30283]
[1736508460654,0.30282,3302.5,3302.1,4.72631094]
[1736508460841,0.4342,3303.2,3302.2,40.8]
[1736508461046,0.30278,3302.9,3302.2,40.8]
[1736508461245,3.2078,3302.9,3302.2,40.8]
[1736508461449,0.30278,3302.8,3302.3,0.30283]
[1736508461647,3.51058,3302.9,3302.4,0.30281]
[1736508461951,3.2078,3302.9,3302.2,40.8]
[1736508462153,3.51058,3302.9,3302.4,0.30282]
[1736508462344,0.30278,3302.8,3302.4,0.30282]
[1736508462745,3.51058,3302.9,3302.3,0.30283]
[1736508462947,3.51058,3302.9,3302.4,0.30282]
[1736508463146,3.51058,3302.9,3302.2,40.8]
[1736508463147,2.31103827,3302.8,3302.2,40.8]
[1736508463348,2.31103827,3302.5,3302.1,3.2078]
[1736508463743,2.31103827,3302.5,3302.1,3.51064]
[1736508463944,2.31103827,3302.5,3302.1,44.0078]
[1736508464156,2.31103827,3302.5,3302.1,44.31064]
[1736508464356,2.31103827,3302.5,3302.2,0.30283]
[1736508464957,0.30281,3302.6,3302.2,0.30283]
[1736508465453,0.30281,3302.6,3302.3,0.462]
[1736508466058,5.99683827,3302.9,3302.3,0.462]
[1736508466258,0.30281,3302.6,3302.3,0.462]
[1736508466452,5.99683827,3302.9,3302.3,0.462]
[1736508466752,0.30281,3302.6,3302.3,0.462]
[1736508468749,2.31103827,3302.6,3302.3,0.462]
[1736508468954,0.30282,3302.5,3302.3,0.462]
[1736508469155,2.31103827,3302.6,3301.4,3.26628428]
[1736508469360,3.2078,3302.8,3302.1,3.2078]
[1736508469661,0.24700577,3303.3,3302.5,3.2078]
[1736508469662,3.6418,3303.2,3302.5,3.2078]
[1736508469863,2.31103827,3303.0,3302.2,1.3273]
[1736508470259,0.4338,3303.6,3303.2,0.30274]
[1736508470465,4.73103522,3303.7,3303.3,1.347]
[1736508470858,0.30272,3303.6,3303.3,1.347]
[1736508471058,2.61375827,3303.5,3303.3,1.347]
[1736508471259,2.31103827,3303.5,3303.3,1.347]
[1736508471464,2.61375827,3303.5,3303.3,1.347]
[1736508471664,2.31103827,3303.5,3302.9,3.2078]
[1736508471858,0.30274,3303.3,3302.9,3.51057]
[1736508472161,1.21,3303.7,3302.9,3.2078]